bitfinex/quotes_ETHUSD_20250518
["timestamp","ask_amount","ask_price","bid_price","bid_amount"]
[1747555543676,7.739,2511.6,2511.3,3.98191967]
[1747555544075,12.894,2511.7,2511.3,3.98194042]
[1747555544286,7.739,2511.6,2511.3,3.98194042]
[1747555545584,7.739,2511.6,2511.1,1.2705]
[1747555545744,12.894,2511.7,2511.4,3.98184279]
[1747555545940,12.894,2511.7,2511.3,1.2705]
[1747555546141,16.87545138,2511.7,2511.2,6.06]
[1747555546345,16.87538415,2511.7,2511.2,10.04206253]
[1747555546890,12.894,2511.7,2511.3,3.98188026]
[1747555547056,7.739,2511.6,2511.3,3.98197622]
[1747555547364,20.633,2511.7,2511.2,10.04210964]
[1747555547574,20.633,2511.7,2511.4,3.98183241]
[1747555547780,20.633,2511.7,2511.6,3.98152572]
[1747555548097,20.633,2511.7,2511.6,4.35978192]
[1747555548266,12.894,2511.7,2511.6,4.35978192]
[1747555549794,12.894,2511.7,2511.6,0.3782562]
[1747555550371,8.0,2512.6,2511.7,1.2705]
[1747555550687,7.739,2512.0,2511.9,3.98096839]
[1747555552293,7.739,2512.0,2511.9,4.35896386]
[1747555552696,7.739,2512.0,2511.9,0.37799547]
[1747555553596,7.739,2512.0,2511.5,5.6661337]
[1747555553802,9.7595,2512.0,2511.5,0.4719124]
[1747555554165,3.98108717,2511.9,2511.5,0.4719124]
[1747555554374,11.71809672,2511.9,2511.5,0.4719124]
[1747555554609,2.54586066,2511.8,2511.5,0.4719124]
[1747555554794,2.54586066,2511.8,2511.5,0.37833884]
[1747555555383,2.54586066,2511.8,2511.5,4.35997882]
[1747555555584,7.737,2511.9,2511.5,4.35997882]
[1747555555793,6.00147376,2512.0,2511.5,4.35997882]
[1747555555997,7.738,2511.8,2511.5,3.98163998]
[1747555556311,7.738,2511.7,2511.5,3.98163998]
[1747555556506,7.738,2511.7,2511.2,5.19473468]
[1747555556815,3.98152777,2511.6,2511.2,1.2126]
[1747555556977,5.22829752,2511.5,2511.1,0.4719124]
[1747555557171,1.2466,2511.5,2511.1,4.45417075]
[1747555557517,1.2426,2511.7,2511.3,0.37853462]
[1747555557679,7.738,2511.5,2511.3,4.36041016]
[1747555558298,7.738,2511.5,2511.3,0.37853462]
[1747555558620,3.98184279,2511.4,2511.3,0.37853462]
[1747555558796,13.77444279,2511.4,2511.3,0.37853462]
[1747555559522,3.98231697,2511.2,2510.9,0.4719124]
[1747555560080,3.98206784,2511.3,2510.9,0.4719124]
[1747555560534,3.98232201,2511.1,2510.9,0.4719124]
[1747555560704,7.739,2511.0,2510.9,0.4719124]
[1747555560905,11.7214771,2511.0,2510.9,0.4719124]
[1747555561220,7.739,2511.0,2510.9,0.4719124]
[1747555562022,11.7214771,2511.0,2510.9,0.4719124]
[1747555562325,11.32365925,2511.0,2510.9,0.4719124]
[1747555562523,8.9816,2511.0,2510.9,0.4719124]
[1747555562736,1.2426,2511.0,2510.9,0.4719124]
[1747555562902,13.447,2511.4,2511.2,3.98204037]
[1747555562903,20.62,2511.4,2511.2,3.98204037]
[1747555563108,20.621,2511.4,2511.0,3.98235005]
[1747555563289,12.897,2511.4,2511.2,3.98215992]
[1747555563489,20.621,2511.4,2511.2,3.98215992]
[1747555565218,16.87893615,2511.4,2510.9,4.45445763]
[1747555565424,20.621,2511.4,2511.1,3.98228826]
[1747555565726,20.62,2511.4,2511.1,3.98217539]
[1747555565889,7.723,2511.3,2511.1,3.98217539]
[1747555566624,12.897,2511.4,2511.1,3.98217539]
[1747555566825,7.723,2511.3,2511.1,3.98217539]
[1747555567027,20.62,2511.4,2511.2,3.98208084]
[1747555567585,12.897,2511.4,2511.3,3.98200135]
[1747555567824,20.62,2511.4,2511.2,5.17648877]
[1747555568048,21.8984,2511.4,2510.9,1.6663124]
[1747555568212,29.23962925,2511.4,2510.9,4.45452047]
[1747555568390,20.62,2511.4,2511.3,3.98200135]
[1747555568591,20.62,2511.4,2511.2,3.98207882]
[1747555568789,20.62,2511.4,2511.3,3.98200135]
[1747555569124,20.62,2511.4,2511.0,5.17680766]
[1747555569329,29.51067967,2511.4,2510.9,4.45453085]
[1747555569530,21.8984,2511.4,2510.9,0.4719124]
[1747555569709,25.88032441,2511.4,2510.9,4.45447416]
[1747555570312,21.8984,2511.4,2510.9,0.4719124]
[1747555570749,3.98203257,2511.3,2510.9,0.4719124]
[1747555570905,25.88032455,2511.4,2510.9,4.45454755]
[1747555571236,21.8984,2511.4,2511.0,3.98240069]
[1747555571543,7.724,2511.3,2511.2,3.98215992]
[1747555571704,7.724,2511.3,2511.2,5.17655992]
[1747555572597,7.724,2511.3,2511.2,3.98215992]
[1747555572795,12.897,2511.4,2511.2,3.98215992]
[1747555573024,12.897,2511.4,2511.3,3.98200135]
[1747555574100,1.2784,2511.9,2511.3,1.21301808]
[1747555574314,5.25857456,2512.5,2512.0,3.98089171]
[1747555574499,7.724,2512.4,2511.8,1.1944]
[1747555574712,7.724,2512.4,2512.2,3.98048764]
[1747555575314,20.621,2512.6,2511.8,1.1944]
[1747555575533,20.621,2512.6,2512.3,3.98038623]
[1747555576553,20.621,2512.6,2512.2,3.98056415]
[1747555576715,20.621,2512.6,2512.4,0.37803433]
[1747555577251,3.9800995,2512.5,2512.4,0.37803433]
[1747555577813,24.60094838,2512.6,2512.0,0.4719124]
[1747555577814,3.98073325,2512.1,2512.0,0.4719124]
[1747555578161,13.36190658,2512.1,2512.0,0.4719124]
[1747555579160,21.10390658,2512.1,2512.0,0.4719124]
[1747555579470,17.12317333,2512.1,2512.0,0.4719124]
[1747555579669,16.7251,2512.1,2511.6,4.35964289]
[1747555579816,16.7251,2512.1,2511.7,3.98129007]
[1747555580016,7.723,2512.0,2511.9,3.98095166]
[1747555580318,7.723,2512.0,2511.7,3.9813672]
[1747555580617,3.98059877,2512.2,2511.7,3.9813672]
[1747555580827,7.722,2512.2,2511.8,5.24858858]
[1747555581045,7.722,2512.2,2512.0,3.98086456]
[1747555581264,7.722,2512.2,2512.1,3.98073325]
[1747555581571,12.898,2512.6,2512.1,3.98073325]
[1747555581719,20.62,2512.6,2512.3,3.98035601]
[1747555582067,20.62,2512.6,2512.2,3.98048764]
[1747555582217,20.62,2512.6,2512.0,3.98084555]
[1747555582572,20.62,2512.6,2512.0,4.50568011]
[1747555582866,20.62,2512.6,2512.0,3.98088529]
[1747555583095,20.62,2512.6,2512.1,0.37770536]
[1747555583366,7.722,2512.5,2512.2,3.9805085]
[1747555583564,7.722,2512.5,2512.3,3.98041635]
[1747555583865,7.722,2512.5,2512.4,3.98025792]
[1747555584074,12.898,2512.6,2512.5,3.9800995]
[1747555584558,7.722,2512.8,2512.7,3.9797827]
[1747555584731,7.722,2512.8,2512.6,3.97986033]
[1747555585051,7.722,2512.8,2512.7,3.9797827]
[1747555585255,5.19131474,2513.2,2512.7,3.9797827]
[1747555585458,7.722,2512.9,2512.7,3.9797827]
[1747555585653,7.722,2512.9,2512.2,0.4719124]
[1747555585654,9.2692,2512.9,2512.2,0.4719124]
[1747555585859,1.2123,2512.8,2512.2,0.4719124]
[1747555586152,5.19200731,2512.8,2512.3,3.9803187]
[1747555586762,1.2123,2512.8,2512.2,0.4719124]
[1747555587059,3.9800995,2512.5,2512.2,0.4719124]
[1747555587233,7.721,2512.4,2512.2,0.4719124]
[1747555587565,7.721,2512.7,2512.3,3.98031608]
[1747555587769,11.7008156,2512.7,2512.2,1.7517124]
[1747555587927,3.97994109,2512.6,2512.2,0.4719124]
[1747555588131,3.98013626,2512.5,2512.2,0.4719124]
[1747555588538,3.98027392,2512.4,2512.2,0.4719124]
[1747555588773,3.98014794,2512.5,2512.2,0.4719124]
[1747555588946,3.97999824,2512.6,2512.2,0.4719124]
[1747555589954,1.2123,2512.8,2512.2,0.50797055]
[1747555590270,7.721,2512.7,2512.3,3.98030112]
[1747555591236,7.721,2512.7,2512.4,3.98018605]
[1747555591438,7.721,2512.7,2512.3,3.98034301]
[1747555591927,7.721,2512.7,2512.4,0.37738815]
[1747555592038,7.721,2512.7,2512.4,4.35757624]
[1747555592706,7.721,2512.7,2512.5,3.98008726]
[1747555592981,15.747,2513.1,2512.5,1.2654]
[1747555593200,3.97931193,2513.0,2512.5,5.2454302]
[1747555593390,11.72622586,2513.1,2512.6,3.97989688]
[1747555593544,11.72622586,2513.1,2512.5,5.24542221]
[1747555593872,3.97938281,2513.0,2512.5,6.2057249]
[1747555594877,3.9794045,2513.0,2512.5,6.20578218]
[1747555598403,11.72622515,2513.1,2512.6,3.97992669]
[1747555598571,3.97932163,2513.0,2512.5,6.20572352]
[1747555598772,7.747,2513.1,2512.5,6.20572352]
[1747555598984,3.97933442,2513.0,2512.5,6.20572352]
[1747555599180,3.97933442,2513.0,2512.6,0.37732121]
[1747555599468,3.9797827,2512.7,2512.6,0.37732121]
[1747555599676,3.97969543,2512.8,2512.6,0.37732121]
[1747555599871,6.43951737,2513.0,2512.6,0.37732121]
[1747555600075,7.746,2512.9,2512.6,0.37732121]
[1747555600688,7.746,2512.9,2512.5,3.97998115]
[1747555601201,7.746,2512.9,2512.5,3.97995357]
[1747555601770,3.97922977,2513.1,2512.6,3.97990689]
[1747555602021,7.746,2513.0,2512.4,3.9801947]
[1747555602173,3.97964107,2512.8,2512.3,5.24577201]
[1747555602574,3.97954628,2512.9,2512.3,5.24577201]
[1747555603229,3.97964152,2512.8,2512.3,1.2654]
[1747555603527,3.97975266,2512.8,2512.4,0.37809752]
[1747555603692,5.15564114,2512.9,2512.4,0.37809752]
[1747555604319,7.746,2512.8,2512.5,3.97998425]
[1747555604812,7.746,2512.9,2512.7,3.97967791]
[1747555605012,7.746,2512.9,2512.6,3.97986907]
[1747555605672,7.746,2512.9,2512.5,4.35812023]
[1747555605868,11.72547863,2512.9,2512.5,0.37809752]
[1747555606305,11.72547863,2512.9,2512.4,4.35834094]
[1747555606506,3.97964475,2512.8,2512.4,0.37809752]
[1747555606695,7.746,2512.9,2512.4,0.37809752]
[1747555606696,11.72554413,2512.9,2512.4,0.37809752]
[1747555607010,3.97978119,2512.8,2512.4,0.37809752]
[1747555607617,7.746,2512.9,2512.4,0.37809752]
[1747555607794,7.746,2512.9,2512.6,3.97986567]
[1747555607977,7.746,2513.0,2512.6,3.97990239]
[1747555608179,11.72533592,2513.0,2512.5,5.20082715]
[1747555608420,7.746,2513.0,2512.5,5.20082715]
[1747555608633,7.746,2513.0,2512.5,5.2008366]
[1747555608919,7.746,2513.0,2512.6,3.97980077]
[1747555609110,11.72539305,2513.0,2512.6,0.37809752]
[1747555609308,7.746,2513.0,2512.6,4.35801916]
[1747555609622,7.746,2513.0,2512.7,3.97977596]
[1747555609835,7.746,2513.0,2512.6,0.37809752]
[1747555610002,11.72532924,2513.0,2512.6,0.37809752]
[1747555610511,7.746,2513.0,2512.6,4.35799876]
[1747555610693,11.72534751,2513.0,2512.6,0.37809752]
[1747555610902,11.72534751,2513.0,2512.7,0.37809752]
[1747555611088,7.745,2512.9,2512.7,0.37809752]
[1747555611915,7.745,2512.9,2512.8,4.35772184]
[1747555612123,7.745,2512.9,2512.8,0.37809752]
[1747555613130,7.686,2513.2,2512.8,4.35769615]
[1747555613529,3.97875921,2513.4,2512.9,4.35754377]
[1747555613727,8.8564,2514.0,2513.0,5.18157406]
[1747555613893,8.8564,2514.0,2513.6,5.18057814]
[1747555614089,8.8564,2514.0,2513.6,1.2023]
[1747555614397,12.83413283,2514.0,2513.6,1.2023]
[1747555615929,3.97792149,2513.9,2513.7,0.37809752]
[1747555616242,0.0008,2514.1,2513.7,0.37809752]
[1747555616442,3.97841008,2514.1,2513.7,0.37809752]
[1747555617004,3.97776492,2514.0,2513.7,0.37809752]
[1747555617316,0.0008,2514.1,2513.7,0.37809752]
[1747555617317,3.97838794,2514.1,2513.7,0.37809752]
[1747555617502,0.0008,2514.1,2513.6,3.9783262]
[1747555617702,3.97838118,2514.1,2513.6,4.8942401]
[1747555618666,3.97838118,2514.1,2513.6,0.9159139]
[1747555618840,3.97773235,2514.0,2513.6,0.9159139]
[1747555620017,5.24371536,2513.9,2513.4,5.18097139]
[1747555620252,3.97780106,2514.0,2513.4,5.18097139]
[1747555620556,3.97848933,2513.6,2513.2,1.6636124]
[1747555620866,3.97848933,2513.6,2513.5,0.37714637]
[1747555621140,4.90073033,2513.6,2513.5,0.37714637]
[1747555621438,0.922241,2513.6,2513.5,0.37714637]
[1747555621643,7.684,2513.6,2513.5,0.37714637]
[1747555621843,5.24367722,2513.9,2513.5,1.56884637]
[1747555621844,11.66197722,2513.9,2513.5,1.56884637]
[1747555622227,7.684,2513.9,2513.6,3.97825746]
[1747555622420,0.0008,2514.1,2513.6,0.91483352]
[1747555622614,7.6848,2514.1,2513.7,3.97804491]
[1747555622814,7.6848,2514.1,2513.9,3.97774437]
[1747555623021,7.6848,2514.1,2513.9,5.16944437]
[1747555623215,0.0008,2514.1,2514.0,3.97772474]
[1747555623416,0.0008,2514.1,2513.9,5.1695114]
[1747555623618,0.0008,2514.1,2514.0,4.89247574]
[1747555624217,0.0008,2514.1,2514.0,0.914751]
[1747555624554,0.0008,2514.1,2514.0,4.89247574]
[1747555625870,0.0008,2514.1,2514.0,0.914751]
[1747555626017,0.0008,2514.1,2513.5,11.66246423]
[1747555626222,0.0008,2514.1,2513.6,1.1917]
[1747555627031,0.0008,2514.1,2514.0,3.97772474]
[1747555627354,0.0008,2514.1,2514.0,5.16942474]
[1747555628326,0.0008,2514.1,2514.0,5.20919841]
[1747555628535,0.0008,2514.1,2514.0,6.8971063]
[1747555628929,0.0008,2514.1,2514.0,7.27310527]
[1747555629158,0.0008,2514.1,2514.0,7.2333316]
[1747555629325,0.0008,2514.1,2514.0,7.2731032]
[1747555629520,0.0008,2514.1,2514.0,7.2333316]
[1747555629975,0.0008,2514.1,2514.0,7.27310161]
[1747555630155,0.0008,2514.1,2514.0,15.2333316]
[1747555632865,0.0008,2514.1,2514.0,21.8433316]
[1747555633071,0.0008,2514.1,2514.0,32.4624046]
[1747555633402,0.0008,2514.1,2514.0,21.8433316]
[1747555633975,0.0008,2514.1,2514.0,30.2396606]
[1747555634179,0.66666667,2514.3,2514.2,5.80150832]
[1747555634379,0.66666667,2514.3,2514.2,27.54250832]
[1747555634770,0.66666667,2514.3,2514.2,27.91850729]
[1747555634972,0.28334387,2514.3,2514.2,27.91850729]
[1747555635160,0.3987111,2514.7,2514.6,12.52677563]
[1747555635360,1.23388838,2515.7,2515.0,13.25024314]
[1747555635361,0.00268838,2515.7,2515.0,13.25024314]
[1747555635680,0.00268838,2515.7,2515.6,13.68859478]
[1747555635907,2.50054509,2517.3,2516.6,3.97361519]
[1747555636087,1.26934509,2517.3,2516.6,21.03701519]
[1747555636257,4.44479179,2517.8,2516.6,21.03701519]
[1747555636442,3.21359179,2517.8,2516.6,1.1634]
[1747555636773,7.81017577,2517.4,2516.6,5.13701519]
[1747555636975,3.8376754,2517.4,2516.6,1.99714698]
[1747555637192,2.6064754,2517.4,2516.6,6.52076217]
[1747555637381,2.6064754,2517.4,2516.6,5.97076217]
[1747555637873,2.6064754,2517.4,2516.6,13.97076217]
[1747555638186,2.6064754,2517.4,2516.6,13.96176217]
[1747555638761,7.983,2517.3,2516.6,5.97076217]
[1747555639058,1.2009,2517.2,2516.2,1.1954]
[1747555639264,7.983,2516.8,2516.2,1.1954]
[1747555639521,7.983,2516.8,2515.8,0.4719124]
[1747555639816,11.95630277,2516.8,2516.2,3.97409737]
[1747555639973,7.99939527,2517.1,2515.8,5.64215828]
[1747555639974,3.97434042,2517.1,2515.8,5.64215828]
[1747555640316,3.97361697,2516.6,2515.9,3.97459842]
[1747555640482,5.56674215,2516.6,2515.9,3.97459842]
[1747555640820,3.97379574,2516.5,2515.8,4.44674083]
[1747555640961,3.97395935,2516.4,2515.8,0.4719124]
[1747555641299,3.97466711,2516.0,2515.8,0.4719124]
[1747555641464,7.982,2515.9,2515.8,0.4719124]
[1747555642464,7.982,2515.9,2515.5,5.17066798]
[1747555642691,7.982,2515.9,2515.6,3.97515178]
[1747555642890,5.17478305,2516.5,2515.6,4.88975255]
[1747555643090,7.982,2516.1,2515.8,3.97485055]
[1747555643416,1.2009,2516.5,2515.6,4.88975255]
[1747555643417,1.2009,2516.5,2515.6,0.91460566]
[1747555643697,1.2009,2516.8,2516.4,3.97385121]
[1747555643895,19.428,2516.9,2516.3,3.97404924]
[1747555644077,19.428,2516.9,2516.2,5.16958216]
[1747555644395,3.97331218,2516.8,2515.9,17.225]
[1747555644564,3.97331218,2516.8,2516.0,5.58151111]
[1747555644771,9.2818,2516.6,2515.7,4.34718578]
[1747555644971,3.97414999,2516.3,2515.7,4.34718578]
[1747555645171,7.981,2516.2,2515.7,4.34718578]
[1747555645375,7.981,2516.2,2515.8,3.97473443]
[1747555645928,7.981,2516.2,2515.6,0.91460566]
[1747555646088,4.77256407,2516.1,2515.3,3.9756689]
[1747555646274,3.97457846,2516.0,2515.4,3.97543676]
[1747555646468,3.97477422,2515.9,2515.2,1.503333]
[1747555646673,3.97461263,2516.0,2515.2,13.47915349]
[1747555646901,3.97461263,2516.0,2515.4,3.97541037]
[1747555647224,7.981,2515.9,2515.5,0.03974938]
[1747555647387,11.97384474,2516.5,2515.9,3.97467388]
[1747555647574,19.99293606,2516.4,2515.8,3.97481307]
[1747555647773,3.97420787,2516.3,2515.7,3.97503285]
[1747555648005,3.97426488,2516.2,2515.4,3.97545477]
[1747555648183,3.97441218,2516.1,2515.5,0.6233861]
[1747555648524,3.97412264,2516.3,2515.7,3.97502541]
[1747555648525,3.97416577,2516.3,2515.7,3.97502541]
[1747555648694,3.9742565,2516.2,2515.6,3.97513126]
[1747555648910,7.981,2516.1,2515.7,3.97501712]
[1747555649301,7.981,2516.0,2515.6,3.97519478]
[1747555649511,7.981,2516.1,2515.8,3.9747777]
[1747555649718,7.981,2516.1,2515.7,4.43482957]
[1747555650089,7.981,2516.1,2515.7,0.45985809]
[1747555650291,11.95545928,2516.1,2515.5,4.59866582]
[1747555650618,7.981,2516.1,2515.7,3.97502742]
[1747555650821,7.981,2516.1,2515.5,0.6233861]
[1747555650973,7.981,2516.1,2515.6,3.97517409]
[1747555651307,11.95549645,2516.1,2515.5,4.59869488]
[1747555651508,3.97456279,2516.0,2515.3,2.2584062]
[1747555651715,3.97490766,2515.8,2515.1,3.97598505]
[1747555651871,5.2483006,2515.9,2515.3,3.9755248]
[1747555652072,5.24822194,2515.9,2515.4,3.97549283]
[1747555652269,1.2735,2515.9,2515.4,3.97549283]
[1747555652512,7.981,2515.8,2515.5,3.97535281]
[1747555653099,7.981,2515.8,2515.4,0.79511588]
[1747555653318,7.981,2515.8,2515.4,4.77054462]
[1747555653473,7.981,2515.8,2515.3,3.97559601]
[1747555653811,7.981,2515.8,2515.0,0.4719124]
[1747555654024,3.97522038,2515.6,2515.0,3.97606188]
[1747555654193,3.97534546,2515.6,2515.0,3.97606188]
[1747555654375,3.97548026,2515.5,2514.9,4.44814724]
[1747555654713,3.97548026,2515.5,2515.0,3.97613358]
[1747555654886,6.77994248,2515.8,2515.1,3.97590192]
[1747555655081,12.7175,2515.9,2515.2,3.97574272]
[1747555655282,7.981,2515.8,2515.4,3.97539517]
[1747555655490,15.988,2515.8,2515.4,3.97539517]
[1747555655684,19.96289586,2515.8,2515.3,3.97564986]
[1747555655877,3.9752466,2515.6,2515.0,3.97601702]
[1747555656077,3.9752466,2515.6,2515.1,3.97596716]
[1747555656274,15.988,2515.8,2515.0,0.9329373]
[1747555656512,15.988,2515.8,2514.9,0.4719124]
[1747555656513,3.97519456,2515.7,2514.9,0.4719124]
[1747555656685,3.97503676,2515.7,2515.2,3.97581321]
[1747555657013,3.97503676,2515.7,2514.9,0.4719124]
[1747555657014,11.95721536,2515.6,2515.1,3.97590772]
[1747555657174,11.95721536,2515.6,2515.0,0.37492339]
[1747555657514,1.1755,2515.3,2515.0,0.37492339]
[1747555658273,7.982,2515.2,2515.1,3.97595713]
[1747555658479,7.982,2515.2,2515.1,4.35088052]
[1747555658777,7.982,2515.3,2515.2,3.97573331]
[1747555658983,7.982,2515.3,2515.1,4.35083256]
[1747555659218,7.982,2515.3,2515.1,0.37492339]
[1747555659579,11.95769134,2515.3,2515.1,0.37492339]
[1747555659779,7.982,2515.3,2515.1,0.37492339]
[1747555660618,7.982,2515.3,2515.0,0.37492339]
[1747555661126,7.982,2515.3,2515.0,4.35102944]
[1747555662037,7.982,2515.3,2515.1,0.37492339]
[1747555662261,3.97582697,2515.2,2515.1,0.37492339]
[1747555662523,8.06897783,2515.2,2515.1,0.24762493]
[1747555662695,3.97645936,2514.8,2514.7,0.4719124]
[1747555662901,44.29388848,2514.8,2514.7,0.4719124]
[1747555664801,44.29388848,2514.8,2513.7,1.2681]
[1747555664802,3.9768798,2514.6,2513.7,1.2681]
[1747555665005,3.97701521,2514.5,2513.9,3.97778823]
[1747555665202,3.97714502,2514.4,2513.8,3.97797125]
[1747555665419,17.2428,2514.3,2513.8,3.97797125]
[1747555665588,17.2428,2514.3,2513.6,3.97825914]
[1747555665790,17.2428,2514.3,2513.6,1.05101715]
[1747555666092,3.97743029,2514.2,2513.7,3.978071]
[1747555666316,3.97743029,2514.2,2513.5,4.45038508]
[1747555666317,7.984,2514.1,2513.6,3.97829155]
[1747555666633,11.96162706,2514.1,2513.6,3.97829155]
[1747555666801,3.97778784,2514.0,2513.5,4.45035851]
[1747555666990,1.2708,2514.3,2513.9,3.97780098]
[1747555667187,15.972,2514.2,2513.5,1.09948466]
[1747555667411,15.972,2514.2,2513.5,0.4719124]
[1747555667745,3.97781675,2514.0,2513.3,3.97874975]
[1747555667945,1.2708,2513.9,2513.3,3.97874975]
[1747555668247,3.9780924,2513.8,2513.3,3.97874975]
[1747555668443,7.99,2513.7,2513.3,3.97874975]
[1747555668947,11.96829509,2513.7,2513.2,3.97898631]
[1747555669416,7.99,2513.7,2513.2,3.97898631]
[1747555670145,7.99,2513.6,2513.2,0.96283432]
[1747555670451,7.99,2513.6,2513.4,3.97856031]
[1747555670648,7.99,2513.6,2513.3,3.97879993]
[1747555671247,7.992,2513.5,2513.1,3.97914925]
[1747555671454,7.992,2513.6,2513.2,0.51774492]
[1747555671631,7.992,2513.6,2513.3,3.97883261]
[1747555671953,1.2708,2513.9,2513.2,0.51774492]
[1747555672113,7.974,2514.1,2513.9,3.97779358]
[1747555672317,7.974,2514.1,2514.0,3.97772474]
[1747555672519,7.974,2514.1,2513.9,3.97784282]
[1747555672824,1.2708,2514.2,2513.8,3.97796181]
[1747555673046,7.992,2514.0,2513.8,3.97793817]
[1747555673849,7.992,2514.0,2513.9,3.97788297]
[1747555674547,8.0,2514.5,2514.1,3.97756652]
[1747555674753,8.0,2514.5,2513.6,5.17659362]
[1747555674754,7.992,2514.4,2513.8,3.97795521]
[1747555674914,9.2628,2514.7,2513.9,3.97774274]
[1747555675114,9.2628,2514.7,2513.8,3.97804121]
[1747555675310,9.2628,2514.7,2514.2,3.97736628]
[1747555675516,7.983,2514.6,2514.2,3.97736628]
[1747555675756,7.983,2514.6,2514.0,3.97768915]
[1747555675953,7.983,2514.6,2513.5,3.97841208]
[1747555675954,5.24773824,2514.5,2513.4,9.1983]
[1747555676159,5.24773824,2514.5,2513.8,3.97795582]
[1747555676160,5.24776629,2514.5,2513.8,3.97795582]
[1747555676311,15.983,2514.4,2514.0,3.97761069]
[1747555676516,3.6740769,2514.5,2513.4,9.1983]
[1747555676739,1.2708,2514.5,2514.0,3.9776921]
[1747555676944,1.2708,2514.5,2513.5,3.97848993]
[1747555676945,15.981,2514.4,2513.5,3.97848993]
[1747555677150,15.981,2514.4,2514.1,3.97753419]
[1747555677653,1.2708,2514.5,2513.6,5.29603672]
[1747555677857,7.992,2514.4,2513.9,1.1983]
[1747555678454,7.992,2514.4,2514.3,3.97725012]
[1747555678618,1.2708,2514.7,2514.3,3.97725012]
[1747555678820,7.992,2514.4,2514.3,3.97725012]
[1747555679215,7.992,2514.4,2514.2,3.97731147]
[1747555679444,7.992,2514.4,2514.1,3.97750822]
[1747555680146,7.992,2514.4,2513.9,1.1983]
[1747555680459,15.964,2514.4,2514.2,3.9773024]
[1747555680858,15.964,2514.4,2514.0,3.97761064]
[1747555681754,1.2708,2514.7,2513.6,2.51597899]
[1747555682066,1.2708,2514.7,2514.5,3.97688998]
[1747555682266,15.953,2514.6,2514.5,3.97688998]
[1747555682483,7.992,2514.6,2514.5,3.97688998]
[1747555682622,1.2708,2514.7,2514.5,3.97688998]
[1747555682822,15.95,2514.6,2513.8,3.97790599]
[1747555683033,15.95,2514.6,2514.3,3.97716702]
[1747555683576,15.947,2514.6,2514.3,3.97716702]
[1747555683783,15.947,2514.6,2514.4,3.97707309]
[1747555683927,15.947,2514.6,2514.2,3.97732313]
[1747555684355,1.2708,2514.7,2514.5,3.97686123]
[1747555684627,7.992,2514.6,2514.5,3.97686123]
[1747555684854,7.992,2514.6,2514.4,3.97701488]
[1747555685028,7.992,2514.6,2514.2,3.97735178]
[1747555685854,7.992,2514.5,2514.2,3.97735178]
[1747555686053,7.992,2514.5,2514.4,3.97709195]
[1747555686255,7.94,2514.6,2514.5,3.9768399]
[1747555686456,11.445,2514.8,2514.4,3.97709195]
[1747555686783,19.437,2514.8,2514.7,3.97661748]
[1747555687127,11.445,2514.8,2514.7,3.97661748]
[1747555687322,7.992,2515.4,2514.8,1.2525]
[1747555687536,12.6651,2515.6,2515.0,3.97612783]
[1747555687736,20.6571,2515.6,2515.2,3.9758263]
[1747555688428,7.992,2515.5,2515.4,3.97551085]
[1747555688954,7.992,2515.5,2515.3,3.97560719]
[1747555689156,7.992,2515.5,2515.0,3.97608031]
[1747555689157,7.991,2515.5,2515.0,3.97608031]
[1747555689363,7.991,2515.5,2515.1,3.97598505]
[1747555689551,7.991,2515.5,2515.0,4.92702607]
[1747555689748,11.96641728,2515.5,2514.9,3.97626003]
[1747555689959,7.991,2515.5,2514.8,5.22893675]
[1747555690153,11.96635327,2515.5,2514.8,5.22893675]
[1747555690356,7.991,2515.5,2515.0,3.97611958]
[1747555690557,7.991,2515.5,2514.8,1.2525]
[1747555690756,11.96644478,2515.5,2514.8,6.00738861]
[1747555690946,3.97575266,2515.3,2514.7,0.4719124]
[1747555691142,3.97575266,2515.3,2514.8,3.97644854]
[1747555691342,7.991,2515.3,2515.1,3.97597758]
[1747555691538,7.991,2515.3,2514.7,0.4719124]
[1747555691742,7.991,2515.3,2515.2,3.97582697]
[1747555691958,11.451,2515.6,2515.2,3.97574303]
[1747555692160,7.99,2515.4,2515.1,3.97590522]
[1747555692368,7.99,2515.4,2515.2,3.97574408]
[1747555692563,7.99,2515.4,2515.1,3.97588343]
[1747555692768,11.451,2515.6,2515.0,5.19074509]
[1747555692975,9.2041,2515.7,2515.0,1.2147]
[1747555693176,9.2041,2515.7,2515.3,3.97564388]
[1747555693488,1.2497,2516.0,2515.5,3.97526762]
[1747555693689,1.2497,2516.0,2515.6,3.97519478]
[1747555693899,1.2497,2516.0,2515.8,3.97487876]
[1747555693900,7.99,2515.9,2515.8,3.97487876]
[1747555694081,3.97411958,2516.3,2515.8,0.79498249]
[1747555694393,3.9743267,2516.2,2515.6,3.97506335]
[1747555694576,3.9743267,2516.2,2515.7,3.9750274]
[1747555694780,3.97426396,2516.2,2515.7,3.9750274]
[1747555695097,5.22369997,2516.4,2515.5,1.2147]
[1747555695266,7.989,2516.3,2515.7,3.97503676]
[1747555695466,7.989,2516.3,2516.1,3.97431918]
[1747555695670,7.989,2516.3,2516.2,3.97424688]
[1747555696207,7.989,2516.5,2516.3,3.97400927]
[1747555696405,7.989,2516.5,2516.3,3.97408894]
[1747555696602,1.25101445,2516.7,2516.0,1.2147]
[1747555696756,1.25101445,2516.7,2516.2,3.97412902]
[1747555696757,7.989,2516.6,2516.2,3.97412902]
[1747555697184,7.989,2516.6,2516.3,3.97397844]
[1747555697498,7.989,2516.6,2516.3,3.97401764]
[1747555698486,7.946,2516.6,2516.3,3.97401764]
[1747555698780,7.946,2516.6,2516.5,3.97373887]
[1747555698990,7.946,2516.6,2516.4,3.97385345]
[1747555699579,7.946,2516.6,2516.4,3.97393101]
[1747555700082,0.00131445,2516.7,2516.0,5.18922788]
[1747555700264,7.94731445,2516.7,2516.0,1.2147]
[1747555700467,7.94731445,2516.7,2516.5,3.9737163]
[1747555700873,0.00131445,2516.7,2516.6,3.97361519]
[1747555702583,0.00131445,2516.7,2516.6,11.97361519]
[1747555702904,0.00131445,2516.7,2516.6,19.90361519]
[1747555703090,0.00131445,2516.7,2516.6,27.20341519]
[1747555703288,0.00139527,2517.1,2517.0,13.21278371]
[1747555703607,0.0028096,2517.8,2517.7,13.21167909]